bitfinex-derivatives/quotes_ETHF0:USTF0_20250317
["timestamp","ask_amount","ask_price","bid_price","bid_amount"]
[1742232917209,1.03613,1930.4,1930.3,4.53246276]
[1742232917713,2.12366276,1930.7,1930.3,4.53246276]
[1742232918219,1.0361,1930.5,1930.3,4.53246276]
[1742232918425,2.48613,1930.4,1930.3,3.21556276]
[1742232918913,0.00776276,1930.7,1930.3,3.21556276]
[1742232919218,1.45776276,1930.7,1930.5,3.2078]
[1742232919615,2.49375276,1930.7,1930.5,3.2078]
[1742232919916,1.03603,1930.6,1930.5,3.8902]
[1742232920220,1.03613,1930.4,1930.3,3.21556276]
[1742232920812,2.35883,1930.4,1930.3,0.00776276]
[1742232921012,1.3227,1930.4,1930.3,0.00776276]
[1742232921212,2.35883,1930.4,1930.3,0.00776276]
[1742232921516,1.3227,1930.4,1930.3,0.00776276]
[1742232921717,2.35883,1930.4,1930.3,0.00776276]
[1742232923215,1.03629,1930.1,1930.0,3.2078]
[1742232923417,5.14329,1930.1,1930.0,3.2078]
[1742232924210,9.19778,1930.1,1929.6,1.3641]
[1742232924409,1.03648,1929.8,1929.6,1.3641]
[1742232924621,2.41681,1929.7,1929.6,1.3641]
[1742232924808,1.3803,1929.7,1929.5,3.21297524]
[1742232925014,1.03656,1929.6,1929.5,3.21297524]
[1742232925424,2.41685,1929.7,1929.5,0.00517524]
[1742232925624,1.03656,1929.6,1929.5,0.00517524]
[1742232925819,2.41686,1929.6,1929.5,0.00517524]
[1742232926020,42.1803,1929.6,1929.5,3.21297524]
[1742232926217,1.3803,1929.6,1929.5,3.21297524]
[1742232926725,40.8,1929.7,1929.5,4.24956524]
[1742232926922,4.089,1929.8,1929.6,0.671]
[1742232927120,4.094,1929.8,1929.6,1.3736]
[1742232927325,1.3316,1929.7,1929.6,0.671]
[1742232927525,44.894,1929.8,1929.6,1.70755]
[1742232927823,4.094,1929.8,1929.7,3.2078]
[1742232928319,1.3316,1929.9,1929.7,4.24429]
[1742232928622,1.3316,1929.9,1929.7,4.24428]
[1742232929320,4.086,1930.2,1929.7,3.2078]
[1742232929618,1.4011,1930.2,1930.0,4.24414]
[1742232929824,32.82,1930.3,1930.1,1.03628]
[1742232930024,32.82,1930.3,1930.2,3.2078]
[1742232930421,1.4011,1930.4,1930.2,3.2078]
[1742232930630,1.38976276,1930.7,1930.2,3.2078]
[1742232930631,1.03609,1930.5,1930.2,4.24401]
[1742232930815,1.4011,1930.6,1930.2,4.24404]
[1742232931123,1.4011,1930.6,1930.5,1.03608]
[1742232931430,5.13274276,1930.7,1930.4,4.24391]
[1742232931625,4.09676276,1930.7,1930.6,3.2078]
[1742232931924,5.13273276,1930.7,1930.6,3.2078]
[1742232932129,0.00776276,1930.7,1930.6,3.2078]
[1742232932329,0.00776276,1930.7,1930.6,4.93073]
[1742232933233,0.00776276,1930.7,1930.6,3.8947]
[1742232934125,1.32046276,1930.7,1930.6,3.8947]
[1742232934339,1.32046276,1930.7,1930.6,4.93073]
[1742232934631,0.00776276,1930.7,1930.6,4.93073]
[1742232935021,0.00776276,1930.7,1930.6,3.8947]
[1742232935227,0.00776276,1930.7,1930.6,4.93073]
[1742232935532,0.00776276,1930.7,1930.6,3.8947]
[1742232935831,0.00776276,1930.7,1930.6,4.93073]
[1742232936629,5.83243378,1932.1,1930.6,9.8607]
[1742232936937,1.4125,1931.7,1931.6,1.03549]
[1742232937235,1.03533,1931.9,1931.7,1.03543]
[1742232937436,2.44783,1931.9,1931.8,4.5574]
[1742232937633,1.4125,1931.9,1931.8,4.5574]
[1742232938032,1.4125,1931.9,1931.8,5.59278]
[1742232938335,0.00776276,1932.0,1931.9,1.03533]
[1742232938533,0.00776276,1932.0,1931.9,2.37213]
[1742232938936,1.372,1932.4,1932.0,1.03524]
[1742232939135,1.372,1932.4,1932.1,1.3368]
[1742232939136,1.3417,1932.3,1932.1,1.3368]
[1742232939336,2.37681,1932.3,1932.2,3.2078]
[1742232939537,1.03525,1932.1,1932.0,3.2078]
[1742232939930,1.03521,1932.2,1932.0,3.2078]
[1742232940132,1.3417,1932.1,1932.0,3.2078]
[1742232940433,0.00776276,1932.2,1932.0,5.57987]
[1742232940636,0.00776276,1932.2,1932.0,4.5446]
[1742232940937,1.34946276,1932.2,1932.0,5.57987]
[1742232941140,1.34946276,1932.2,1932.1,1.03522]
[1742232941354,0.00776276,1932.2,1932.0,5.57984]
[1742232941638,0.00776276,1932.2,1932.0,5.57985]
[1742232942133,28.735,1932.8,1932.1,4.074]
[1742232942441,1.03495,1932.6,1932.5,3.2078]
[1742232942627,41.83495,1932.6,1932.5,3.2078]
[1742232942940,2.41334,1932.7,1932.5,3.2078]
[1742232943336,41.83495,1932.6,1932.5,3.2078]
[1742232943533,42.1784,1932.6,1932.5,3.2078]
[1742232944637,43.21335,1932.6,1932.5,3.2078]
[1742232945536,42.1784,1932.6,1932.5,3.2078]
[1742232945741,43.21335,1932.6,1932.5,3.2078]
[1742232946741,43.21335,1932.6,1932.2,2.43013]
[1742232946742,1.03503,1932.5,1932.3,3.2078]
[1742232946943,1.3593,1932.4,1932.3,3.2078]
[1742232947846,1.3593,1932.4,1932.3,4.24291]
[1742232948044,1.3593,1932.4,1932.3,3.2078]
[1742232948248,1.3593,1932.4,1932.3,4.24291]
[1742232948545,40.8,1932.6,1932.3,4.24291]
[1742232948749,1.4213,1932.5,1932.4,1.341]
[1742232948937,1.4213,1932.5,1932.4,4.5488]
[1742232949336,2.45631,1932.5,1932.4,4.5488]
[1742232949736,2.45631,1932.5,1932.4,3.2078]
[1742232950336,1.4213,1932.5,1932.4,3.2078]
[1742232950547,2.45631,1932.5,1932.4,3.2078]
[1742232953844,1.4213,1932.5,1932.4,3.2078]
[1742232954145,2.45631,1932.5,1932.4,3.2078]
[1742232954732,1.4213,1932.5,1932.4,3.2078]
[1742232955140,1.4213,1932.5,1932.4,4.5917]
[1742232955657,2.45631,1932.5,1932.4,3.2078]
[1742232956138,6.43531,1932.5,1932.4,3.2078]
[1742232956345,7.98785,1932.5,1932.2,3.2078]
[1742232956543,1.4112,1932.4,1932.0,4.5917]
[1742232956745,1.03522,1932.1,1932.0,3.2078]
[1742232957241,1.0356,1931.4,1931.3,1.4019]
[1742232957540,1.03565,1931.3,1931.2,0.6677]
[1742232957738,1.03576,1931.1,1931.0,3.2078]
[1742232958140,1.4474,1931.3,1930.9,1.4019]
[1742232958549,1.45516276,1931.3,1931.0,3.2078]
[1742232958846,2.49082276,1931.3,1931.1,1.4019]
[1742232959247,1.0357,1931.2,1931.1,1.4019]
[1742232959849,2.3928,1931.2,1931.1,1.4019]
[1742232960952,1.03581,1931.0,1930.9,0.00776276]
[1742232961149,1.03579,1931.1,1930.9,1.33356276]
[1742232961349,1.3571,1931.2,1931.0,3.2078]
[1742232961544,0.00776276,1931.3,1931.1,1.3258]
[1742232961849,1.04341276,1931.3,1931.2,3.8805]
[1742232962048,1.04341276,1931.3,1931.2,5.2063]
[1742232962248,1.04341276,1931.3,1931.2,6.242]
[1742232962452,1.04341276,1931.3,1931.2,5.2063]
[1742232962748,0.00776276,1931.3,1931.2,6.242]
[1742232962945,1.03556,1931.5,1931.2,5.2063]
[1742232963154,1.03554,1931.5,1931.4,3.2078]
[1742232963844,1.3644,1931.6,1931.4,3.2078]
[1742232964050,1.03549,1931.6,1931.5,2.41382]
[1742232964243,1.03549,1931.6,1931.5,2.0904]
[1742232964649,0.00776276,1931.7,1931.6,1.03549]
[1742232964851,0.00776276,1931.7,1931.6,4.24329]
[1742232967152,2.36059,1932.0,1931.6,3.2078]
[1742232967360,2.36057,1932.0,1931.9,3.2078]
[1742232968056,1.3253,1932.0,1931.9,4.24313]
[1742232968257,5.01726,1932.1,1932.0,1.03527]
[1742232968451,1.04302276,1932.1,1932.0,2.36197]
[1742232968649,1.04302276,1932.1,1932.0,1.3267]
[1742232969058,2.47542276,1932.1,1932.0,1.3267]
[1742232969353,2.47542276,1932.1,1932.0,2.36197]
[1742232969354,0.00776276,1932.1,1932.0,2.36197]
[1742232969557,1.04298276,1932.1,1932.0,1.3267]
[1742232969758,2.47538276,1932.1,1932.0,1.3267]
[1742232969963,0.00776276,1932.1,1932.0,1.3267]
[1742232970458,2.47538276,1932.1,1932.0,1.3267]
[1742232970655,1.44016276,1932.1,1932.0,1.3267]
[1742232970852,1.44016276,1932.1,1932.0,2.36197]
[1742232971560,0.00776276,1932.1,1932.0,3.05837]
[1742232973864,0.00776276,1932.1,1932.0,2.0231]
[1742232974160,0.00776276,1932.1,1932.0,3.05837]
[1742232974363,2.41378276,1932.1,1932.0,2.0231]
[1742232974858,1.03533,1931.9,1931.8,0.6759]
[1742232975159,1.03533,1931.9,1931.7,3.2078]
[1742232975160,1.03538,1931.8,1931.7,3.2078]
[1742232975361,2.47968,1931.8,1931.7,3.2078]
[1742232975955,1.4443,1931.8,1931.7,3.2078]
[1742232976662,1.4443,1931.8,1931.7,4.5413]
[1742232977062,2.47968,1931.8,1931.7,3.2078]
[1742232977259,1.4443,1931.8,1931.7,3.2078]
[1742232977465,3.96076276,1932.1,1932.0,1.03527]
[1742232977765,0.00776276,1932.1,1932.0,1.03527]
[1742232977957,0.00776276,1932.1,1932.0,3.10067]
[1742232979768,2.40126,1932.4,1932.1,1.03519]
[1742232980076,1.3662,1932.4,1932.2,3.2078]
[1742232980371,1.3662,1932.4,1932.3,1.3473]
[1742232980575,1.3662,1932.4,1932.3,2.38241]
[1742232981170,0.00776276,1932.5,1932.4,1.03506]
[1742232981171,3.94876276,1932.5,1932.4,1.03506]
[1742232981370,5.39226276,1932.5,1932.4,4.24286]
[1742232981773,5.39226276,1932.5,1932.4,3.2078]
[1742232982077,1.45126276,1932.5,1932.4,4.24286]
[1742232982278,1.45126276,1932.5,1932.4,5.61296]
[1742232983470,2.58689,1933.0,1932.5,1.035]
[1742232983676,1.4435,1932.7,1932.6,3.09375]
[1742232983871,3.929,1932.8,1932.7,1.0349]
[1742232984080,44.729,1932.8,1932.7,2.4764]
[1742232984269,46.0678,1932.8,1932.7,2.4764]
[1742232984767,5.2678,1932.8,1932.7,2.4764]
[1742232984968,1.3388,1932.8,1932.7,2.4764]
[1742232985172,40.8,1933.0,1932.7,1.4415]
[1742232985371,46.0578,1933.0,1932.9,3.2078]
[1742232985575,47.09254,1933.0,1932.9,3.2078]
[1742232986278,47.09254,1933.0,1932.9,4.6493]
[1742232986878,47.09254,1933.0,1932.9,3.2078]
[1742232987081,43.17354,1933.0,1932.9,3.2078]
[1742232987778,1.0349,1932.7,1932.6,3.8965]
[1742232988079,1.0349,1932.7,1932.6,3.2078]
[1742232988474,2.3553,1932.7,1932.6,3.2078]
[1742232988672,1.03501,1932.5,1932.4,3.2078]
[1742232988871,1.3204,1932.7,1932.4,4.24285]
[1742232989072,44.704,1933.0,1932.6,3.2078]
[1742232989280,2.35519,1932.9,1932.8,3.2078]
[1742232989775,1.3204,1932.9,1932.8,4.24265]
[1742232989970,1.3204,1932.9,1932.8,3.2078]
[1742232990482,2.35519,1932.9,1932.8,3.2078]
[1742232991077,1.3204,1932.9,1932.8,3.2078]
[1742232991778,2.35519,1932.9,1932.8,3.2078]
[1742232992483,1.3204,1932.9,1932.6,3.2078]
[1742232992687,1.03487,1932.8,1932.6,3.2078]
[1742232992877,1.03487,1932.8,1932.7,1.4217]
[1742232993284,1.03487,1932.8,1932.6,3.2078]
[1742232993483,1.03485,1932.8,1932.7,1.4442]
[1742232993782,41.83478,1933.0,1932.8,1.03484]
[1742232993986,41.83478,1933.0,1932.9,1.4442]
[1742232994982,1.03479,1932.9,1932.8,0.7151]
[1742232995183,43.3869,1933.0,1932.6,3.2078]
[1742232995483,43.3869,1933.0,1932.6,4.24275]
[1742232995484,1.03488,1932.8,1932.6,4.24275]
[1742232995687,40.8,1933.0,1932.7,1.4442]
[1742232995987,1.03485,1932.8,1932.7,1.4442]
[1742232996187,1.03483,1932.9,1932.7,1.4442]
[1742232996389,1.03483,1932.9,1932.7,2.47908]
[1742232996889,1.03485,1932.8,1932.7,1.4442]
[1742232997688,1.03483,1932.9,1932.7,2.47909]
[1742232997886,3.899,1933.1,1932.7,2.47908]
[1742232998082,3.899,1933.1,1932.8,3.2078]
[1742232998289,1.03479,1932.9,1932.8,3.2078]
[1742232998788,3.899,1933.1,1932.8,3.2078]
[1742232998986,4.93371,1933.1,1933.0,3.2078]
[1742232999986,4.93371,1933.1,1932.9,1.4424]
[1742233000287,1.03479,1932.9,1932.8,3.9231]
[1742233000486,3.899,1933.1,1932.8,5.3281]
[1742233001082,1.03479,1932.9,1932.8,5.3281]
[1742233001282,1.03475,1933.0,1932.8,6.36293]
[1742233001484,3.899,1933.1,1932.9,1.405]
[1742233001676,1.03474,1933.0,1932.9,1.405]
[1742233002079,4.9337,1933.1,1932.9,1.405]
[1742233002290,4.9127,1933.1,1933.0,3.2078]
[1742233003687,4.5553,1933.2,1933.0,3.2078]
[1742233003881,1.03479,1932.9,1932.8,3.9231]
[1742233004081,1.03479,1932.9,1932.8,5.2954]
[1742233004280,1.03478,1933.0,1932.8,5.2954]
[1742233004686,1.03478,1933.0,1932.9,1.3723]
[1742233004984,4.5553,1933.2,1932.9,1.3723]
[1742233005289,1.03474,1933.0,1932.9,1.3723]
[1742233005485,1.03472,1933.1,1932.9,1.3723]
[1742233006083,2.41784,1933.0,1932.9,1.3723]
[1742233006277,2.41784,1933.0,1932.8,4.95792]
[1742233006483,1.03479,1932.9,1932.8,3.9231]
[1742233006689,2.41789,1932.9,1932.8,3.2078]
[1742233008590,2.41789,1932.9,1932.8,4.6217]
[1742233010887,2.41789,1932.9,1932.8,3.2078]
[1742233011084,1.03495,1932.6,1932.5,3.2078]
[1742233011393,1.03506,1932.4,1932.3,3.2078]
[1742233011590,1.03506,1932.4,1932.3,4.5696]
[1742233011790,1.03506,1932.4,1932.3,3.2078]
[1742233012088,1.03511,1932.3,1932.2,0.00776276]
[1742233012293,1.4435,1932.5,1932.2,1.36956276]
[1742233012784,1.03506,1932.4,1932.2,1.36956276]
[1742233012979,1.4435,1932.3,1932.2,2.40469276]
[1742233013393,1.4435,1932.3,1932.2,1.36956276]
[1742233013594,2.47861,1932.3,1932.2,1.36956276]
[1742233013792,2.58797,1932.2,1931.7,3.2078]
[1742233013992,1.03538,1931.8,1931.7,4.5696]
[1742233014388,3.841,1932.0,1931.7,4.5696]
[1742233014586,3.841,1932.0,1931.9,3.2078]
[1742233014992,4.87627,1932.0,1931.9,3.2078]
[1742233015189,0.00776276,1932.1,1931.9,4.6461]
[1742233015495,0.00776276,1932.1,1932.0,1.03527]
[1742233015795,72.08909,1932.9,1932.0,0.6958]
[1742233015994,1.03501,1932.5,1932.4,3.2078]
[1742233016794,1.03499,1932.6,1932.4,3.2078]
[1742233016998,1.03499,1932.6,1932.5,1.4383]
[1742233017490,2.45875,1932.6,1932.5,1.4383]
[1742233019488,1.03493,1932.7,1932.5,1.4383]
[1742233019789,2.45865,1932.8,1932.6,3.8908]
[1742233019994,2.45865,1932.8,1932.7,1.3247]
[1742233020486,41.83483,1932.9,1932.7,1.3247]
[1742233020694,43.25883,1932.9,1932.8,3.2078]
[1742233021695,1.424,1932.9,1932.8,4.24265]
[1742233022089,1.424,1932.9,1932.8,3.2078]
[1742233022594,1.424,1933.0,1932.8,4.24264]
[1742233022787,1.424,1933.0,1932.9,1.3228]
[1742233022993,44.622,1933.1,1932.9,2.35757]
[1742233023188,40.8,1933.1,1933.0,3.2078]
[1742233023389,41.83469,1933.1,1933.0,4.5306]
[1742233023598,42.2525,1933.1,1933.0,5.56534]
[1742233023786,42.2525,1933.1,1933.0,4.5306]
[1742233024191,42.2525,1933.1,1933.0,5.56534]
[1742233024394,42.2525,1933.1,1933.0,4.5306]
[1742233024600,42.2525,1933.1,1933.0,5.56534]
[1742233024796,42.2525,1933.1,1933.0,4.5306]
[1742233025398,42.2525,1933.1,1933.0,5.56534]
[1742233025894,42.2525,1933.1,1933.0,4.5306]
[1742233026096,42.2525,1933.1,1933.0,5.56534]
[1742233026491,40.8,1933.1,1933.0,11.53134]
[1742233026692,1.335,1933.7,1933.6,1.03442]
[1742233026891,3.08946,1934.2,1933.6,3.2078]
[1742233026892,3.834,1934.0,1933.6,3.2078]
[1742233027100,4.86825,1934.0,1933.9,3.2078]
[1742233027295,1.03419,1934.1,1933.9,3.2078]
[1742233027604,41.8342,1934.0,1933.9,3.2078]
[1742233028302,6.46855,1934.6,1933.9,4.5685]
[1742233028602,1.03409,1934.3,1934.2,3.2078]
[1742233029300,1.03404,1934.3,1934.2,3.2078]
[1742233029496,28.701,1935.0,1934.5,1.03389]
[1742233029701,28.701,1935.0,1934.6,4.5599]
[1742233029702,32.552,1935.0,1934.6,4.5599]
[1742233029903,2.66341138,1934.9,1934.6,3.2078]
[1742233030097,1.03383,1934.7,1934.6,3.2078]
[1742233030296,1.03388,1934.6,1934.5,0.00776276]
[1742233030496,2.39788,1934.6,1934.5,0.00776276]
[1742233030700,4.98272515,1934.6,1934.5,0.00776276]
[1742233030900,2.98562515,1934.6,1934.5,0.00776276]
[1742233031201,43.28272515,1934.6,1934.5,0.00776276]
[1742233031399,47.1357291,1934.6,1934.5,0.00776276]
[1742233031704,43.19788,1934.6,1934.5,0.00776276]
[1742233031904,47.04888,1934.6,1934.5,1.35986276]
[1742233033006,47.04888,1934.6,1934.5,0.00776276]
[1742233033193,47.13372829,1934.6,1934.5,0.00776276]
[1742233033398,47.13372829,1934.6,1934.5,2.76e-06]
[1742233033598,49.67592829,1934.6,1934.5,2.76e-06]
[1742233034428,52.88373518,1934.6,1934.5,2.76e-06]
[1742233034600,49.67593518,1934.6,1934.5,2.76e-06]
[1742233034904,52.88373518,1934.6,1934.5,2.76e-06]
[1742233035103,2.58492,1934.5,1933.7,3.2078]
[1742233035309,1.03458,1933.3,1933.2,1.3262]
[1742233035600,6.44011,1933.6,1933.2,1.3262]
[1742233035807,1.03452,1933.4,1933.3,0.6564]
[1742233036005,1.03452,1933.4,1933.3,4.5277]
[1742233036203,3.854,1933.6,1933.3,4.5277]
[1742233036401,4.00324,1934.0,1933.3,4.5277]
[1742233036602,1.03443,1933.6,1933.5,3.2078]
[1742233036902,1.04219276,1933.6,1933.5,3.2078]
[1742233037406,1.04219276,1933.6,1933.5,1.4203]
[1742233037607,1.03452,1933.4,1933.3,1.3199]
[1742233037807,1.03452,1933.4,1933.3,2.0767]
[1742233038308,41.83452,1933.4,1933.3,2.0767]
[1742233039503,41.83452,1933.4,1933.2,0.00776276]
[1742233039504,1.03458,1933.3,1933.2,0.00776276]
[1742233039811,9.50938267,1933.3,1933.2,0.00776276]
[1742233040404,12.00938267,1933.3,1933.2,0.00776276]
[1742233040602,12.00938267,1933.3,1933.2,2.76e-06]
[1742233041102,1.03479,1932.9,1932.8,2.0776]
[1742233041305,45.68279,1932.9,1932.8,2.0776]
[1742233042107,4.88279,1932.9,1932.8,2.0776]
[1742233042710,3.848,1932.9,1932.8,2.0776]
[1742233043010,4.88279,1932.9,1932.8,2.0776]
[1742233043211,6.35471124,1932.9,1932.8,2.0776]
[1742233044415,1.03485,1932.8,1932.7,0.00776276]
[1742233044621,2.50677124,1932.8,1932.7,0.00776276]
[1742233045311,1.03501,1932.5,1932.4,0.7097]
[1742233045613,1.03511,1932.3,1932.2,1.3448]
[1742233045808,4.87204,1932.5,1932.2,2.0147]
[1742233046108,3.837,1932.5,1932.2,2.0147]
[1742233046415,1.03511,1932.3,1932.2,2.02246276]
[1742233046709,3.84476276,1932.5,1932.2,2.02246276]
[1742233046916,3.84476276,1932.5,1932.2,3.05760276]
[1742233046917,0.00776276,1932.5,1932.2,3.05760276]
[1742233047115,0.00776276,1932.5,1932.3,4.24291]
[1742233047313,0.00776276,1932.5,1932.4,2.37986]
[1742233047513,0.00776276,1932.5,1932.4,1.3448]
[1742233048217,1.04277276,1932.5,1932.4,1.3448]
[1742233048608,0.00776276,1932.5,1932.4,2.37986]
[1742233049110,1.03482,1932.9,1932.6,1.03495]
[1742233049316,1.03482,1932.9,1932.7,2.0567]
[1742233049516,1.03485,1932.8,1932.7,2.0567]
[1742233049718,2.51117432,1932.8,1932.7,2.0567]
[1742233050415,2.51117559,1932.8,1932.7,1.3829]
[1742233050810,0.08492559,1932.8,1932.7,1.3829]
[1742233051007,0.00776276,1932.9,1932.7,1.3829]
[1742233051213,1.03485,1932.8,1932.7,1.3829]
[1742233051414,1.11977504,1932.8,1932.7,1.3829]
[1742233051610,1.11977474,1932.8,1932.7,1.3829]
[1742233051914,1.11977697,1932.8,1932.7,1.3829]
[1742233053523,1.03485,1932.8,1932.7,1.3829]
[1742233053817,1.11978019,1932.8,1932.7,1.3829]
[1742233054718,1.03495,1932.6,1932.5,0.6674]
[1742233054911,4.94088019,1932.6,1932.5,2.0892]
[1742233055111,4.94088019,1932.6,1932.5,0.6674]
[1742233055311,6.36699625,1932.6,1932.5,0.6674]
[1742233055817,0.03089625,1932.6,1932.5,0.6674]
[1742233056013,1.03494,1932.7,1932.5,0.6674]
[1742233056211,1.03494,1932.7,1932.5,2.0892]
[1742233056411,1.03494,1932.7,1932.6,0.6566]
[1742233056816,3.817,1932.8,1932.6,0.6566]
[1742233057019,4.85185,1932.8,1932.7,1.4067]
[1742233057218,4.93635852,1932.8,1932.7,1.4067]
[1742233057414,0.00776276,1932.9,1932.7,2.4416]
[1742233057812,1.04256276,1932.9,1932.7,2.4416]
[1742233058009,0.00776276,1932.9,1932.7,2.4416]
[1742233058214,0.00776276,1932.9,1932.8,1.03485]
[1742233058524,1.04255276,1932.9,1932.8,3.2078]
[1742233059223,0.00776276,1932.9,1932.8,4.24265]
[1742233060224,1.04255276,1932.9,1932.8,3.2078]
[1742233060524,0.00776276,1932.9,1932.8,3.2078]
[1742233061024,0.00776276,1932.9,1932.8,4.24265]
[1742233061516,0.00776276,1932.9,1932.8,3.2078]
[1742233061717,0.00776276,1932.9,1932.8,4.24265]
[1742233062118,0.00776276,1932.9,1932.8,3.2078]
[1742233062321,40.8,1933.2,1933.1,1.03469]
[1742233062524,1.4287,1933.6,1933.1,3.2078]
[1742233062714,1.4287,1933.6,1933.2,2.1195]
[1742233062715,0.08447243,1933.5,1933.2,2.1195]
[1742233062923,41.83455,1933.4,1933.2,2.1195]
[1742233063226,40.8,1933.4,1933.3,4.24238]
[1742233063623,41.83452,1933.4,1933.3,3.2078]
[1742233063931,40.8,1933.4,1933.3,3.2078]
[1742233064230,41.83452,1933.4,1933.3,3.2078]
[1742233065431,43.22382,1933.4,1933.3,3.2078]
[1742233066024,1.03458,1933.3,1933.2,0.00776276]
[1742233066231,7.90131924,1933.3,1932.9,1.3661]
[1742233066524,1.03474,1933.0,1932.9,1.3661]
[1742233068327,1.03479,1932.9,1932.8,0.00776276]
[1742233068524,2.45809,1932.9,1932.8,0.00776276]
[1742233068823,3.2126908,1932.9,1932.8,0.00776276]
[1742233069224,1.03495,1932.6,1932.5,1.3661]
[1742233069429,1.0351,1932.4,1932.2,1.3356]
[1742233069623,1.03517,1932.2,1932.1,3.2078]
[1742233069822,1.03522,1932.1,1932.0,5.966]
[1742233070017,1.03522,1932.1,1932.0,9.1738]
[1742233070222,1.03522,1932.1,1932.0,5.966]
[1742233070419,1.03522,1932.1,1931.9,0.00776276]
[1742233070626,0.00776276,1932.2,1931.9,0.00776276]
[1742233070821,2.36477,1932.0,1931.9,1.38536276]
[1742233071128,46.96577,1932.0,1931.9,0.00776276]
[1742233071431,46.96577,1932.0,1931.9,1.38536276]
[1742233071623,46.96577,1932.0,1931.9,0.00776276]
[1742233071823,47.05031971,1932.0,1931.9,0.00776276]
[1742233072030,47.0503203,1932.0,1931.9,0.00776276]
[1742233073130,46.96577,1932.0,1931.9,0.00776276]
[1742233073329,51.10333492,1932.0,1931.4,3.2078]
[1742233073624,1.03554,1931.5,1931.4,4.5829]
[1742233073829,4.83154,1931.5,1931.4,4.5829]
[1742233074027,3.796,1931.5,1931.2,1.3751]
[1742233074232,1.3265,1931.4,1931.2,1.3751]
[1742233074421,2.36214,1931.4,1931.2,1.38286276]
[1742233074620,1.03565,1931.3,1931.2,1.38286276]
[1742233074826,1.3265,1931.3,1931.2,1.38286276]
[1742233075124,3.796,1931.5,1931.2,0.00776276]
[1742233075429,3.796,1931.5,1931.2,1.37496276]
[1742233075430,1.4356,1931.3,1931.2,1.37496276]
[1742233075818,2.47125,1931.3,1931.2,1.37496276]
[1742233076323,2.47125,1931.3,1931.2,0.00776276]
[1742233077233,2.55583185,1931.3,1931.2,0.00776276]
[1742233077931,2.47125,1931.3,1931.2,0.00776276]
[1742233078130,2.55583494,1931.3,1931.2,0.00776276]
[1742233079441,31.9158,1931.8,1931.2,3.21556276]
[1742233079630,2.44395,1931.3,1931.2,0.00776276]
[1742233079829,6.3275196,1931.3,1931.2,0.00776276]
[1742233080533,2.5285196,1931.3,1931.2,0.00776276]
[1742233081031,6.3285196,1931.3,1931.2,0.00776276]
[1742233081533,3.8855696,1931.3,1931.2,0.00776276]
[1742233081736,3.8644,1931.7,1931.2,1.31886276]
[1742233081737,4.8356,1931.5,1931.2,1.31886276]
[1742233081935,1.0356,1931.5,1931.2,1.31886276]
[1742233082132,1.4039,1931.6,1931.3,3.2078]
[1742233082329,41.4869,1932.0,1931.5,3.2078]
[1742233082534,41.4869,1932.0,1931.4,2.0121]
[1742233082535,1.03542,1931.8,1931.6,1.3111]
[1742233082830,6.24127,1931.9,1931.6,1.3111]
[1742233083034,1.03539,1931.8,1931.6,4.5189]
[1742233083237,1.03544,1931.7,1931.6,3.2078]
[1742233083429,2.43929,1931.8,1931.6,3.2078]
[1742233083836,2.4393,1931.8,1931.6,3.2078]
[1742233084029,9.57464294,1932.2,1931.6,4.24324]
[1742233084030,1.0353,1932.0,1931.6,4.24324]
[1742233084232,1.0353,1932.0,1931.8,3.2078]
[1742233084438,44.598,1932.1,1931.8,3.2078]
[1742233084936,1.3249,1932.0,1931.8,3.2078]
[1742233085334,1.3249,1932.0,1931.8,3.9068]
[1742233085725,1.03542,1931.8,1931.5,9.1738]
[1742233085930,4.83242,1931.8,1931.5,9.1738]
[1742233086129,1.3249,1931.7,1931.5,9.1738]
[1742233086332,1.3249,1931.7,1931.5,10.20934]
[1742233086535,3.797,1931.8,1931.6,1.03549]
[1742233086738,3.797,1931.8,1931.5,9.1738]
[1742233086739,1.3249,1932.0,1931.7,4.24324]
[1742233086932,3.796,1932.0,1931.9,4.24313]
[1742233087134,40.8,1932.1,1932.0,1.03527]
[1742233087338,40.8,1932.1,1932.0,1.3945]
[1742233087737,41.83522,1932.1,1932.0,1.3945]
[1742233087930,1.03527,1932.0,1931.9,3.2078]
[1742233088140,1.03538,1931.8,1931.7,0.6955]
[1742233089141,2.34548,1931.8,1931.7,0.6955]
[1742233090242,1.03544,1931.7,1931.6,3.9068]
[1742233090542,1.03549,1931.6,1931.5,5.966]
[1742233090732,4.82453,1931.6,1931.4,3.2078]
[1742233090929,2.38134,1931.5,1931.4,3.2078]
[1742233091134,1.3458,1931.5,1931.4,3.2078]
[1742233092135,2.38134,1931.5,1931.4,3.2078]
[1742233093338,1.03565,1931.3,1931.2,0.00776276]
[1742233093533,4.81365,1931.3,1931.2,0.00776276]
[1742233093733,1.03581,1931.0,1930.8,3.8918]
[1742233094236,1.4122,1931.2,1930.8,3.8918]
[1742233094454,1.4122,1930.9,1930.8,3.8918]
[1742233094937,43.24806,1930.9,1930.8,3.8918]
[1742233095140,40.8,1930.9,1930.8,3.8918]
[1742233095445,0.00776276,1931.0,1930.9,1.03586]
[1742233095643,3.778,1931.3,1931.0,1.03578]
[1742233095851,3.778,1931.4,1931.1,3.2078]
[1742233096037,40.8,1931.7,1930.9,5.966]
[1742233096038,40.8,1931.7,1931.3,3.2078]
[1742233096237,1.03554,1931.5,1931.4,1.3984]
[1742233096938,2.41274,1931.5,1931.4,1.3984]
[1742233097243,2.49731072,1931.5,1931.4,1.3984]
[1742233097742,4.82330276,1931.6,1931.4,1.3984]
[1742233098045,3.78776276,1931.6,1931.4,1.3984]
[1742233098241,4.82325276,1931.6,1931.5,0.7059]
[1742233098948,0.00776276,1931.6,1931.5,1.4009]